Cogmind - Beta 10.2 @@@ ROGUE MODE // 2021.04.03 @ 18:01:17 Player: Hoebuh Result: Destroyed by S-10 Pest with Light Assault Rifle Performance ------------- Evolutions (1) 500 Regions Visited (2) 400 Robots Destroyed (20) 100 Value Destroyed (410) 410 Prototype IDs (0) 0 Alien Tech Used (0) 0 Bonus (0) 0 TOTAL SCORE: 1410 Bonus ------- None Cogmind --------- Core Integrity 0/400 Matter 194/300 Energy 100/100 System Corruption 2% Temperature Cool (0) Movement Treading (160) Location -9/Materials Parts ------- > --- POWER (2) -------- (None) > --- PROPULSION (2) --- Improved Treads Improved Treads > --- UTILITY (2) ------ Small Storage Unit Medium Storage Unit > --- WEAPON (3) ------- (None) > --- INVENTORY (10) --- Small Storage Unit Peak State ------------ > --- POWER ------------ Light Ion Engine > --- PROPULSION ------- Improved Treads Improved Treads > --- UTILITY ---------- Small Storage Unit Medium Storage Unit > --- WEAPON ----------- Mining Claw > --- INVENTORY -------- Small Laser [Rating: 8] Favorites ----------- Power Light Ion Engine Engine Light Ion Engine Propulsion Wheel Treads Improved Treads Leg Aluminum Leg Wheel Wheel Utility Small Matter Pod Storage Small Matter Pod Weapon Small Laser Energy Gun Small Laser Launcher Grenade Launcher Slashing Weapon Mining Claw Build | -11 -10 -9 ------- Run | Scr Mat Mat Slots Evolved 2 | . . 2 Power 1 | . . 1 Propulsion . | . . . Utility . | . . . Weapon 1 | . . 1 Parts Attached 21 | 6 12 3 Power 3 | 1 2 . Engine 3 | 1 2 . Core . | . . . Reactor . | . . . Propulsion 8 | 2 4 2 Treads 4 | . 2 2 Leg 2 | . 2 . Wheel 2 | 2 . . Hover . | . . . Flight . | . . . Utility 3 | 1 2 . Device . | . . . Storage 3 | 1 2 . Processor . | . . . Hackware . | . . . Protection . | . . . Artifact . | . . . Weapon 7 | 2 4 1 Energy Gun 5 | 2 2 1 Energy Cannon . | . . . Ballistic Gun . | . . . Ballistic Cannon . | . . . Launcher 1 | . 1 . Special Weapon . | . . . Impact Weapon . | . . . Slashing Weapon 1 | . 1 . Piercing Weapon . | . . . Special Melee Weapon . | . . . Unidentified Prototypes . | . . . Parts Lost 14 | . 9 5 Power 2 | . 1 1 Propulsion 5 | . 3 2 Utility 1 | . 1 . Weapon 6 | . 4 2 Highest Loss Streak 7 | . 7 3 Average Slot Usage (%) 62 | . 69 44 Engine 9 | . 12 1 Treads 5 | . 2 13 Leg 9 | . 12 . Wheel 8 | . 11 . Storage 12 | . 8 22 Energy Gun 9 | . 12 . Launcher 4 | . 6 . Slashing Weapon 3 | . 2 6 Naked Turns . | . . . Heaviest Build 17 | 6 17 17 Greatest Support 46 | 20 46 46 Greatest Overweight (x) 4 | . 2 4 Average Overweight (x) . | . . . Largest Inventory Capacity 10 | 4 10 10 Average Capacity 5 | 4 4 10 Most Carried 4 | 4 4 2 Average Carried 2 | 2 3 1 Final Capacity 10 | 4 10 10 Final Carried 4 | 4 1 1 Class Distribution -------------------- 100% | Mutant Dominant Class ---------------- Mutant | -10/Materials Mutant | -9/Materials Resources | -11 -10 -9 ----------- Run | Scr Mat Mat Matter Collected 356 | 310 46 . Remotely . | . . . Salvage Created 476 | 96 380 . Parts 47 | 15 32 . Haulers Intercepted . | . . . Recyclers Shooed 2 | . 2 . Parts Field Recycled . | . . . Retrieved Matter . | . . . Parts Self-Destructed . | . . . Prevented . | . . . Kills | -11 -10 -9 ------- Run | Scr Mat Mat Combat Hostiles Destroyed 8 | 1 7 . Guns 1 | 1 . . AOE 7 | . 7 . Classes Destroyed 7 | 3 4 . Worker 2 | 1 1 . Builder 3 | . 3 . Tunneler 3 | 2 1 . Recycler 2 | . 2 . Operator 1 | . 1 . Watcher 1 | . 1 . Grunt 8 | 1 7 . Best Kill Streak 6 | 3 6 . Combat Bots Only 4 | 1 4 . Max Kills in Single Turn 2 | 1 2 . Gunslinging . | . . . Exploded 2 | . 2 . Melee . | . . . Uniques/NPCs Destroyed . | . . . Combat | -11 -10 -9 -------- Run | Scr Mat Mat Damage Taken 1853 | 65 679 1109 Core 528 | . 128 400 Absorbed by Shields . | . . . Core Remaining (%) 74 | 100 48 . Volleys Fired 47 | 8 36 3 Largest 2 | 2 2 1 Hottest 90 | 80 90 40 Shots Fired 73 | 16 54 3 Gun 61 | 16 42 3 Cannon . | . . . Launcher 12 | . 12 . Special . | . . . Kinetic . | . . . Thermal 61 | 16 42 3 Explosive 12 | . 12 . Electromagnetic . | . . . Robot Hit Streak 6 | 5 6 5 Robot Miss Streak 4 | 2 4 1 Penetration Max . | . . . Secondary Targets . | . . . Shots Hit Robots 39 | 9 27 3 Core Hits 34 | 5 29 . Critical Hits . | . . . Critical Kills . | . . . Critical Parts Destroyed . | . . . Melee Attacks 3 | . 1 2 Impact . | . . . Slashing 3 | . 1 2 Piercing . | . . . Sneak Attacks 1 | . . 1 Combat Hostiles . | . . . Follow-up Attacks . | . . . Damage Inflicted 1266 | 138 1022 106 Guns 393 | 138 221 34 Cannons . | . . . Explosions 778 | . 778 . Melee 95 | . 23 72 Ramming . | . . . Kinetic . | . . . Thermal 393 | 138 221 34 Explosive 778 | . 778 . Electromagnetic . | . . . Impact . | . . . Slashing 95 | . 23 72 Piercing . | . . . Highest Corruption 6 | . 6 2 Average Corruption 5 | . 6 2 Corruption Purged . | . . . Effects 4 | . 3 1 Energy Discharges 2 | . 2 . Data Loss (major) 1 | . 1 . Targeting Errors 1 | . . 1 Overload Shots . | . . . Overflow Damage 108 | . 66 42 Projectiles . | . . . Explosions 66 | . 66 . Melee 42 | . . 42 Knockbacks . | . . . Impact . | . . . Kinetic . | . . . Secondary . | . . . Self-Inflicted Damage 52 | . 52 . Shots 2 | . 2 . Rammed 1 | . . 1 Targets Rammed 1 | . . 1 Kicked . | . . . Crushed . | . . . Highest Temperature 108 | 108 84 . Average Temperature 33 | 46 28 . Received Heat Transfer 288 | 36 252 . Siege Activations . | . . . Robots Corrupted . | . . . Combat Hostiles . | . . . Parts Fried . | . . . Impact Corruptions . | . . . Robots Melted . | . . . Combat Hostiles . | . . . Parts Melted 1 | . 1 . Heat Transferred 911 | 300 536 75 Parts Sabotaged . | . . . Parts Stolen . | . . . Parts Stripped . | . . . Power Chain Reactions . | . . . Missiles Intercepted . | . . . Alert | -11 -10 -9 ------- Run | Scr Mat Mat Peak Influence 314 | 35 314 144 Initial 124 | . 22 124 Average 129 | 9 175 131 Maximum Alert Level 1 | . 1 . Low Security (%) 71 | 100 48 100 Level 1 28 | . 51 . Level 2 . | . . . Level 3 . | . . . Level 4 . | . . . Level 5 . | . . . High Security . | . . . Max Security . | . . . Squads Dispatched 3 | . 3 . Investigation . | . . . Extermination . | . . . Reinforcement 3 | . 3 . Assault . | . . . Garrison . | . . . Intercept . | . . . Construction Impeded . | . . . Haulers Reinforced . | . . . Stealth | -11 -10 -9 --------- Run | Scr Mat Mat Distress Signals 1 | . 1 . Communications Jammed . | . . . Distress Signals . | . . . Times Spotted 23 | 1 14 8 Peak Tracking Total 5 | 1 5 4 Tactical Retreats 2 | . . 2 Traps | -11 -10 -9 ------- Run | Scr Mat Mat Traps Triggered . | . . . Indirectly . | . . . Trap Hack Attempts . | . . . Triggered . | . . . Disarmed . | . . . Reprogrammed . | . . . Reused . | . . . Traps Extracted . | . . . Installed . | . . . Triggered . | . . . Machines | -11 -10 -9 ---------- Run | Scr Mat Mat Machines Disabled 3 | . 3 . Max in Single Turn 1 | . 1 . Machines Sabotaged . | . . . Garrisons Compromised . | . . . Overloaded Fab Kills . | . . . Fab Network Shutdowns . | . . . Hacking | -11 -10 -9 --------- Run | Scr Mat Mat Machines Accessed 1 | . 1 . Terminals . | . . . Fabricators . | . . . Repair Stations . | . . . Recycling Units 1 | . 1 . Scanalyzers . | . . . Garrison Access . | . . . Total Hacks 2 | . 2 . Successful . | . . . Failed 2 | . 2 . Catastrophic . | . . . Database Lockouts . | . . . Manual . | . . . Terminals . | . . . Fabricators . | . . . Repair Stations . | . . . Recycling Units 2 | . 2 . Scanalyzers . | . . . Garrison Access . | . . . Terminal Hacks . | . . . Fabricator Hacks . | . . . Repair Station Hacks . | . . . Recycling Unit Hacks . | . . . Scanalyzer . | . . . Garrison Access Hacks . | . . . Unauthorized Hacks . | . . . Terminals . | . . . Fabricators . | . . . Repair Stations . | . . . Recycling Units . | . . . Scanalyzers . | . . . Garrison Access . | . . . Data Cores Recovered . | . . . Used . | . . . Hacking Detections 1 | . 1 . Full Trace Events . | . . . Feedback Events . | . . . Feedback Blocked . | . . . Robot Schematics Acquired . | . . . Robots Built . | . . . Matter . | . . . Time . | . . . Total Robot Build Rating . | . . . Part Schematics Acquired . | . . . Parts Built . | . . . Matter . | . . . Time . | . . . Total Part Build Rating . | . . . Parts Repaired . | . . . Time . | . . . Parts Recycled . | . . . Recycled Matter . | . . . Retrieved Matter . | . . . Retrieved Components . | . . . Parts Scanalyzed . | . . . Part Schematics Acquired . | . . . Parts Damaged . | . . . Bothacking | -11 -10 -9 ------------ Run | Scr Mat Mat Used RIF Installer . | . . . Robots Hacked . | . . . Non-combat . | . . . Combat . | . . . Robot Hacks Applied . | . . . Relay Couplers Released . | . . . Robots Rewired . | . . . Allies Hacked . | . . . Hacks Repelled . | . . . Allies | -11 -10 -9 -------- Run | Scr Mat Mat Total Allies . | . . . Largest Group . | . . . Highest-Rated Group . | . . . Highest-Rated Ally . | . . . Total Orders . | . . . Ally Attacks . | . . . Total Damage . | . . . Kills . | . . . Allies Corrupted . | . . . Allies Melted . | . . . Intel | -11 -10 -9 ------- Run | Scr Mat Mat Robot Analysis Total . | . . . Derelict Logs Recovered . | . . . Drone Launches . | . . . Drone Recoveries . | . . . Exploration | -11 -10 -9 ------------- Run | Scr Mat Mat Turns Passed 694 | 154 385 155 Spaces Moved 485 | 147 260 78 Core 56 | 31 2 23 Treads 69 | . 14 55 Legs 117 | . 117 . Wheels 243 | 116 127 . Hover . | . . . Flight . | . . . Fastest Speed 50 | 50 80 160 Average Speed 105 | 73 102 175 Slowest Speed 250 | 80 160 250 Overloaded Moves . | . . . Propulsion Burnouts . | . . . Robots Hopped . | . . . Cave-ins Triggered 1 | . 1 . Exploration Rate (%) 14 | 6 31 7 Regions Visited 2 Branch Regions . Pre-discovered Areas . | . . . Known Exits Taken . | . . . Unknown Exits Taken 2 | 1 1 . Scrap Searched . | . . . Spaces Dug . | . . . Terrain Destroyed 84 | . 84 . Melee . | . . . Projectile . | . . . AOE 84 | . 84 . Terrain Rammed . | . . . Walls Destroyed . | . . . Machines Disabled . | . . . Actions | -11 -10 -9 --------- Run | Scr Mat Mat Total 585 | 175 322 88 Wait 7 | 7 . . Move 483 | 146 259 78 Hop . | . . . Pick Up 18 | 8 9 1 Fast Attach 6 | 2 2 2 Attach 12 | 4 7 1 Detach . | . . . Swap 3 | . 3 . Drop 5 | . 5 . Fire 47 | 8 36 3 Melee 3 | . 1 2 Ram 1 | . . 1 Kick . | . . . Crush . | . . . Escape Stasis . | . . . Rewire . | . . . Trap . | . . . Miscellaneous . | . . . Route ------- -11/Scrapyard -10/Materials -9/Materials History --------- Turn | Location | Event 2 | -11/Scrapyard | Met Revision 17 99 | -11/Scrapyard | Discovered new exit (range 8) 155 | -11/Scrapyard | Entered Materials 314 | -10/Materials | Build established: Mutant 345 | -10/Materials | Crushed by falling debris 376 | -10/Materials | Lost 7 parts (1p2n1u3w) 487 | -10/Materials | Discovered new exit (range 16) 540 | -10/Materials | Entered another Materials area 540 | -9/Materials | Evolved 2 slots: Power x1, Weapon x1 643 | -9/Materials | Core integrity fell below 50% 663 | -9/Materials | Lost 3 parts (2n1w) 669 | -9/Materials | Core integrity fell below 20% 695 | -9/Materials | Destroyed by S-10 Pest with Light Assault Rifle Last Messages --------------- PARAMETERS=POWER_1,WEAPON_1 LOCATION=UNKNOWN GOAL=ESCAPE Acquired Sml. Storage Unit. Lgt. Ion Engine destroyed. S-10 Pest destroyed. K-01 Serf collects debris. Imp. Treads destroyed. K-01 Serf collects debris. Imp. Treads destroyed. K-01 Serf collects debris. Sneak attack on R-06 Scavenger. Destroyed Com. Wheel. Destroyed Tractor Beam. Mining Claw destroyed. Slammed into S-10 Pest. Destabilizing: System corrupted (+2). Acquired Imp. Treads. System corrupted: Sml. Laser targeting data glitched. Sml. Laser destroyed. Map ----- +----------------------------------------------------+ | ????# ????????????????????????? | | ????# ????????????????????????? | | ????# ???????????????????????? | | ????# ???????????????????????? | | ????# ???????????????????????? | | ????# ???????????????????????? | | ????# ???????????????????????? | | ##### ???????????????????????? | | ???????????????????????? | | ############???????????? | | #???????????? | | ????# #???????????? | | ????# #???????????? | | ????#### ######## ##???????????? | | ???????# #??????# #????????????? | | ???????# #??????# #????????????? | | ???????# #??????# #????????????? | | ???????# #??????# #????????????? | | ???????# #??????# #????????????? | | ???????# #??????# #?########???? | | ???????# #???#### #?# #???? | | ???????# #??##! #?# #???? | | ???????# #??#! ### !! #???? | | ???????# #??#! #ss = #???? | | ???????# #??#! % # s= #???? | | ???????# #??#! + @ #???? | | ???????# #??##!! ########???? | | ??????## ######## ## #???? | | ??????# #???? | | ??????+ #???? | | ??????# #???? | | ??????# ######## ### #???? | | ??????# #??????# #??# ##???? | | ??????# #??????#+#??? #????? | | ??????# #?????? ???? #????? | | ??????# #?????? ????? #????? | | ??????# #?????? ??????#????? | | ??????# #?????? ???????????? | | ??????# #?????? "Y"??????????? | | ??????# #?????? """??????????? | | ??????# #?????? ?????????????? | | ??????# ???????#?????????????? | | ??????# ?????????????????????? | | ??????? ?????????????????????? | | ???????????????????????????????? | | ???????????????????????????????? | | ???????????????????????????????? | | ???????????????????????????????? | | ???????????????????????????????? | | ???????????????????????????????? | +----------------------------------------------------+ Best States ------------- Heat Dissipation 28 Energy Generation 10 Energy Capacity 125 Matter Stores 350 Matter Capacity 350 Sight Range 16 Terrain Scan Density 10 Evasion (%) 50 Recoil Reduction 2 Item Schematics ----------------- None Robot Schematics ------------------ None Fabricated ------------ Nothing Alien Tech Used ----------------- None Achievements -------------- Unlikely Earthworm Challenges ------------ None Game ------ Seed TargetingCloakingJammer Manual? 0 Play Time 00:18:15 Cumulative 0.7 hours Start 2021.04.03 @ 17:42:56 End 2021.04.03 @ 18:01:17 Sessions 1 Manual Loads 0 Difficulty Rogue Special Mode None Game No. 3 Rogue 3 Adventurer 0 Explorer 0 Win Type - Total 0 Types 0/0/0/0/0/0/0/0/0 Lore% 0 Gallery% 2 Achievement% 1 Wizard Run 0 Options --------- ASCII 0 Keyboard 0 Movement Numpad Keybinds 0 Fullscreen 1 Font 24/Smallcaps Map View 76x50 Tactical HUD 0 Map Filters NONE Filters NONE Steam 1 RUN: 5ca4511c-8359-4e0b-a961-aa7f0cd02cdb